bitfinex/quotes_ETHUSD_20230117
["timestamp","ask_amount","ask_price","bid_price","bid_amount"]
[1673929802660,1.0,1571.4,1570.9,1.19003918]
[1673929802836,1.0,1571.4,1571.0,0.02286806]
[1673929802837,5.57462407,1571.4,1571.0,0.02286806]
[1673929803256,1.458,1571.2,1571.0,0.02286806]
[1673929803499,1.455,1571.1,1571.0,0.02286806]
[1673929803709,1.458,1571.1,1571.0,0.02286806]
[1673929803916,1.91546241,1571.1,1571.0,0.02286806]
[1673929804152,6.49008648,1571.1,1571.0,6.806e-05]
[1673929804340,1.0,1571.0,1570.9,0.066]
[1673929804532,5.05222407,1571.0,1570.9,0.066]
[1673929806569,11.41759407,1571.0,1570.9,0.066]
[1673929806882,20.00580272,1571.0,1570.9,0.066]
[1673929807091,13.64043272,1571.0,1570.9,0.066]
[1673929808233,7.27506272,1571.0,1570.9,0.066]
[1673929808424,4.57462407,1571.0,1570.9,0.066]
[1673929808986,1.9356,1571.1,1570.9,0.066]
[1673929809141,4.56962407,1571.0,1570.9,0.066]
[1673929809362,18.98536407,1571.0,1570.9,0.066]
[1673929809622,18.45153741,1571.0,1570.9,0.066]
[1673929809815,0.066,1571.0,1570.8,0.002]
[1673929811787,0.066,1571.0,1570.8,1.002]
[1673929812017,0.066,1571.0,1570.8,16.85090407]
[1673929812228,0.066,1571.0,1570.8,18.62260407]
[1673929812437,0.066,1571.0,1570.9,1.86226041]
[1673929812768,0.066,1571.0,1570.9,14.59380041]
[1673929813096,0.06,1571.4,1570.9,14.59380041]
[1673929813309,0.06,1571.4,1571.0,0.4776]
[1673929813525,1.292,1571.3,1570.8,0.4797]
[1673929813686,1.292,1571.3,1570.8,0.002]
[1673929813913,7.65639,1571.3,1570.8,0.002]
[1673929814115,17.13740407,1571.3,1570.8,0.002]
[1673929814332,8.07854041,1571.2,1570.8,0.002]
[1673929814557,1.292,1571.0,1570.8,0.002]
[1673929814721,1.292,1571.0,1570.6,3.4778]
[1673929814929,1.287,1571.1,1570.6,13.21169]
[1673929815198,0.4776,1571.2,1570.6,12.73389]
[1673929815367,0.4776,1571.2,1570.8,6.36616]
[1673929815807,0.4776,1571.2,1570.7,8.117589]
[1673929815999,13.20611,1571.3,1570.7,8.117589]
[1673929816213,16.32273407,1571.3,1570.7,8.117589]
[1673929817615,16.32273407,1571.3,1570.7,1.751089]
[1673929817772,1.63227341,1571.2,1570.7,4.751089]
[1673929818244,1.63227341,1571.2,1570.7,3.0]
[1673929818245,1.292,1571.1,1570.7,3.0]
[1673929818430,2.99227341,1571.2,1570.6,9.43293]
[1673929818630,7.65857,1571.2,1570.6,9.43293]
[1673929818832,7.72257,1571.2,1570.7,0.4777]
[1673929819386,1.294,1571.0,1570.6,0.5438]
[1673929819720,3.11662407,1570.9,1570.6,0.066]
[1673929819934,1.292,1570.7,1570.6,0.066]
[1673929821887,8.65858,1570.7,1570.6,0.066]
[1673929822369,18.61948407,1570.7,1570.6,0.066]
[1673929823695,18.61948407,1570.7,1570.6,0.0364233]
[1673929823696,1.7697,1570.7,1570.6,0.0364233]
[1673929824023,4.88632407,1570.7,1570.6,0.0364233]
[1673929824238,4.40862407,1570.7,1570.6,0.0364233]
[1673929824458,3.11662407,1570.7,1570.2,8.9085233]
[1673929824786,0.02286806,1570.6,1570.3,0.89085233]
[1673929825003,1e-08,1570.6,1570.3,0.89085233]
[1673929825734,1e-08,1570.6,1570.4,0.00924128]
[1673929826786,1e-08,1570.6,1570.4,13.74477128]
[1673929826937,1e-08,1570.6,1570.5,1.85227713]
[1673929827143,0.066,1570.8,1570.6,0.00199999]
[1673929827613,0.066,1570.8,1570.6,6.36887999]
[1673929828568,0.066,1570.8,1570.6,12.73586999]
[1673929831199,0.066,1570.8,1570.6,6.36887999]
[1673929832107,0.066,1570.8,1570.6,12.73586999]
[1673929832323,0.066,1570.8,1570.7,7.640167]
[1673929833387,0.066,1570.8,1570.7,7.6645903]
[1673929833388,0.014,1570.8,1570.7,7.6645903]
[1673929833604,8.2023,1571.2,1570.7,7.6785903]
[1673929834246,6.9083,1571.2,1570.7,7.6785903]
[1673929835514,13.2731,1571.2,1570.7,7.6785903]
[1673929835957,17.164794,1571.2,1570.7,7.6785903]
[1673929836119,17.164794,1571.2,1570.7,1.3120103]
[1673929836331,20.28141807,1571.2,1570.7,1.3120103]
[1673929836562,20.28141807,1571.2,1570.7,0.0384233]
[1673929837068,0.5436,1571.2,1570.7,0.0384233]
[1673929837280,0.066,1571.2,1570.8,1.7717]
[1673929837488,0.066,1571.2,1570.9,6.36569]
[1673929837736,0.066,1571.2,1570.9,7.01202918]
[1673929840733,0.066,1571.2,1570.9,0.64633918]
[1673929841624,12.94457394,1571.2,1570.8,0.4777]
[1673929841796,4.5448635,1571.1,1570.7,0.0384233]
[1673929842157,14.02274,1571.0,1570.6,0.00199999]
[1673929842374,18.99612442,1571.0,1570.6,0.00199999]
[1673929842585,20.42436385,1571.0,1570.6,0.00199999]
[1673929843466,18.99612442,1571.0,1570.6,0.00199999]
[1673929843791,1.85676035,1571.0,1570.6,6.36892999]
[1673929843979,9.56516943,1571.1,1570.6,6.36892999]
[1673929844839,3.19983943,1571.1,1570.6,12.73591999]
[1673929845190,8.5998,1571.2,1570.6,13.21371999]
[1673929845344,8.1222,1571.2,1570.7,1.57958886]
[1673929845561,0.066,1571.2,1570.8,0.15795889]
[1673929845926,0.066,1571.2,1570.8,0.63565889]
[1673929846245,0.066,1571.2,1570.8,0.15795889]
[1673929846938,8.85881943,1571.2,1570.7,6.84396]
[1673929847106,7.85881943,1571.2,1570.7,6.84396]
[1673929847317,14.22339943,1571.2,1570.7,0.4777]
[1673929847534,1.49423943,1571.2,1570.8,3.11662407]
[1673929847838,1.49423943,1571.2,1570.9,23.21369407]
[1673929847839,0.066,1571.2,1570.9,23.21369407]
[1673929848056,0.066,1571.2,1571.1,6.36496]
[1673929848630,0.066,1571.2,1570.9,0.4777]
[1673929849082,0.066,1571.2,1570.8,19.03951]
[1673929849528,0.066,1571.2,1571.0,6.36537]
[1673929849713,0.066,1571.2,1571.0,2.04267744]
[1673929849895,0.066,1571.2,1571.0,0.4776]
[1673929850311,0.066,1571.2,1571.0,0.47374772]
[1673929850519,0.066,1571.2,1571.0,6.83903772]
[1673929850788,10.68169943,1571.5,1571.0,6.83903772]
[1673929851618,4.31823943,1571.5,1571.0,13.20440772]
[1673929851944,4.31823943,1571.5,1571.1,1.32044077]
[1673929852176,10.68158943,1571.5,1571.1,1.32044077]
[1673929852361,10.68158943,1571.5,1571.0,6.83903772]
[1673929853732,17.04493943,1571.5,1571.0,0.47374772]
[1673929855797,17.04493943,1571.5,1570.9,6.84313]
[1673929856014,17.04493943,1571.5,1570.9,8.29913]
[1673929856220,23.20954389,1571.5,1570.9,10.382474]
[1673929856487,7.364,1571.4,1570.9,10.382474]
[1673929856641,16.61223943,1571.4,1570.9,4.017044]
[1673929856856,16.61223943,1571.4,1570.8,27.57201]
[1673929857097,18.50581982,1571.4,1570.8,27.57201]
[1673929857308,18.98331982,1571.4,1570.8,27.57201]
[1673929857750,17.98331982,1571.4,1570.8,27.57201]
[1673929857905,17.98331982,1571.4,1570.9,2.757201]
[1673929858116,16.08973943,1571.4,1570.9,9.122961]
[1673929858804,17.98331982,1571.4,1570.8,27.57201]
[1673929858954,1.42823943,1571.3,1570.8,27.57201]
[1673929859167,7.79255943,1571.3,1570.8,27.57201]
[1673929859752,6.36432,1571.3,1570.8,27.57201]
[1673929862323,0.004,1571.2,1570.8,29.0664333]
[1673929862526,6.42632,1571.3,1570.9,3.90664333]
[1673929862778,0.062,1571.3,1570.9,9.27239333]
[1673929863002,0.062,1571.3,1571.0,3.11662407]
[1673929863193,1.42823943,1571.6,1571.1,2.456]
[1673929863399,1.42823943,1571.6,1571.1,14.18552]
[1673929863634,1.42823943,1571.6,1571.2,1.896152]
[1673929864154,1.42823943,1571.6,1571.1,3.4776]
[1673929864799,3.32181982,1571.6,1571.2,3.11662407]
[1673929864945,0.06,1571.7,1571.5,1.456]
[1673929865155,0.06,1571.7,1571.5,7.81929]
[1673929865366,0.06,1571.7,1571.6,1.259429]
[1673929865678,1e-05,1571.7,1571.6,10.622369]
[1673929865907,0.25763462,1571.8,1571.6,21.55793307]
[1673929866239,0.25763462,1571.8,1571.6,22.20427225]
[1673929866452,3.462e-05,1571.8,1571.6,22.20427225]
[1673929866687,3.462e-05,1571.8,1571.7,2.22042722]
[1673929866896,3.462e-05,1571.8,1571.7,14.60158129]
[1673929867045,3.462e-05,1571.8,1571.7,19.24792047]
[1673929867251,3.462e-05,1571.8,1571.7,18.2571541]
[1673929867510,3.462e-05,1571.8,1571.7,18.7345541]
[1673929867755,3.462e-05,1571.8,1571.7,18.4165541]
[1673929868040,0.20933831,1572.0,1571.7,16.47821492]
[1673929868236,0.20933831,1572.0,1571.8,1.64782149]
[1673929868832,1.63757774,1572.0,1571.7,9.06959085]
[1673929869051,1.42823943,1571.9,1571.7,0.4774]
[1673929869309,2.1029187,1572.0,1571.6,6.36263]
[1673929869310,3.53115813,1572.0,1571.6,6.60293]
[1673929869470,1.42823943,1571.9,1571.6,6.60293]
[1673929869843,3.53115813,1572.0,1571.6,6.60293]
[1673929869996,1.63757774,1572.0,1571.6,8.401543]
[1673929870419,0.20933831,1572.0,1571.6,8.401543]
[1673929871081,0.20933831,1572.0,1571.6,17.88110707]
[1673929871409,0.20933831,1572.0,1571.8,6.36213]
[1673929873088,0.20933831,1572.0,1571.5,14.96323]
[1673929873335,8.18362934,1572.0,1571.6,3.0]
[1673929874357,0.20933831,1572.0,1571.6,9.36294]
[1673929874515,0.20933831,1572.0,1571.7,0.2161]
[1673929874885,0.20933831,1572.0,1571.7,6.36224]
[1673929877252,0.20933831,1572.0,1571.7,12.72477]
[1673929877459,0.20933831,1572.0,1571.7,15.84139407]
[1673929877885,0.20933831,1572.0,1571.8,1.58413941]
[1673929878542,0.20933831,1572.0,1571.5,6.36316]
[1673929878759,7.31140429,1571.8,1571.4,0.0063475]
[1673929878935,6.59259,1571.7,1571.4,0.0063475]
[1673929879144,0.7074,1571.7,1571.4,0.0063475]
[1673929879355,0.7434,1571.7,1571.4,0.0063475]
[1673929879579,0.07434,1571.6,1571.4,0.0063475]
[1673929879783,7.7293,1571.6,1571.4,0.0063475]
[1673929879996,0.4775,1571.5,1571.4,0.0063475]
[1673929880222,8.2068,1571.6,1571.4,0.0063475]
[1673929881030,1.0,1571.5,1571.4,0.0063475]
[1673929881344,3.21268,1571.5,1571.4,0.0063475]
[1673929882413,2.21268,1571.5,1571.4,0.0063475]
[1673929882634,0.92068,1571.5,1571.4,0.0063475]
[1673929883092,3.78993429,1571.6,1571.4,0.0063475]
[1673929883393,2.84084,1571.6,1571.4,0.0063475]
[1673929883712,2.78993429,1571.6,1571.4,0.0063475]
[1673929883933,1.84084,1571.6,1571.4,0.0063475]
[1673929884676,3.78993429,1571.6,1571.4,0.0063475]
[1673929884892,0.37899343,1571.5,1571.4,0.0063475]
[1673929885100,6.74233343,1571.5,1571.4,0.0063475]
[1673929886757,7.69142772,1571.5,1571.4,0.0063475]
[1673929887533,14.05476772,1571.5,1571.4,0.0063475]
[1673929887935,13.10567343,1571.5,1571.4,0.0063475]
[1673929888338,0.036,1571.7,1571.4,0.6993475]
[1673929888531,0.036,1571.7,1571.4,7.0630075]
[1673929889436,0.036,1571.7,1571.5,7.52712407]
[1673929889584,1e-08,1571.7,1571.6,10.77156407]
[1673929889794,1e-08,1571.7,1571.6,15.79687148]
[1673929890115,1e-08,1571.7,1571.6,15.92717148]
[1673929891696,1e-08,1571.7,1571.6,6.44760741]
[1673929892312,1e-08,1571.7,1571.6,1.4223]
[1673929892784,1e-08,1571.7,1571.6,0.1303]
[1673929893167,1e-08,1571.7,1571.5,3.2011]
[1673929894621,1e-08,1571.7,1571.5,0.2011]
[1673929894839,6.36260001,1571.7,1571.4,11.8613475]
[1673929895080,1.0,1571.6,1571.4,11.8613475]
[1673929895366,7.36303,1571.6,1571.4,0.0063475]
[1673929895687,13.72606,1571.6,1571.4,0.0063475]
[1673929895934,13.77606001,1571.6,1571.4,0.0063475]
[1673929896089,7.740946,1571.5,1571.4,0.0063475]
[1673929898003,14.104286,1571.5,1571.4,0.0063475]
[1673929898413,15.626286,1571.5,1571.4,0.0063475]
[1673929898639,17.05288029,1571.5,1571.4,0.0063475]
[1673929899411,21.59774379,1571.5,1571.4,0.0063475]
[1673929900129,20.16950436,1571.5,1571.4,0.0063475]
[1673929900369,21.59774379,1571.5,1571.4,0.0063475]
[1673929900530,20.16950436,1571.5,1571.4,0.0063475]
[1673929901090,20.23150437,1571.5,1571.4,0.0063475]
[1673929902138,20.71064951,1571.5,1571.4,0.0063475]
[1673929902306,26.50763198,1571.5,1571.4,0.0063475]
[1673929902527,3.2475804,1571.5,1571.4,0.0063475]
[1673929902736,0.002,1571.6,1571.5,0.88544709]
[1673929904291,0.682,1571.6,1571.5,0.88544709]
[1673929904505,0.002,1571.6,1571.5,0.88544709]
[1673929905166,7.37987805,1571.7,1571.5,0.88544709]
[1673929906228,6.42881,1571.7,1571.5,0.88544709]
[1673929906623,0.066,1571.7,1571.5,0.88544709]
[1673929907701,6.42859,1571.7,1571.5,0.88544709]
[1673929907890,7.37965805,1571.7,1571.5,0.88544709]
[1673929908239,13.74224805,1571.7,1571.5,0.88544709]
[1673929908417,1.0,1571.6,1571.5,0.88544709]
[1673929909498,18.96608446,1571.6,1571.4,0.0063475]
[1673929909855,22.45196936,1571.5,1571.4,0.0063475]
[1673929910285,19.51796936,1571.5,1571.4,0.0063475]
[1673929910497,23.07946234,1571.5,1571.4,0.0063475]
[1673929910705,22.12805635,1571.5,1571.4,0.0063475]
[1673929912178,24.02163674,1571.5,1571.4,0.0063475]
[1673929913332,1.0,1571.4,1570.9,0.1585]
[1673929913595,1.0,1571.4,1570.8,0.15922865]
[1673929913596,1.293,1571.2,1570.8,0.15922865]
[1673929913909,12.73008,1571.1,1570.8,0.15922865]
[1673929915388,12.73008,1571.1,1570.8,0.06394865]
[1673929916139,24.88249464,1571.3,1570.8,9.54668272]
[1673929916140,13.68043823,1571.3,1570.8,9.54668272]
[1673929916431,12.72889,1571.3,1570.9,0.95466827]
[1673929916645,12.72889,1571.3,1570.8,9.54668272]
[1673929916868,12.72889,1571.3,1570.8,3.18057272]
[1673929916869,19.09344,1571.3,1570.8,3.18057272]
[1673929917766,20.04498823,1571.3,1570.8,3.18057272]
[1673929917980,20.11098823,1571.3,1570.8,3.14214942]
[1673929918310,2.29954823,1571.3,1570.8,0.02552535]
[1673929918521,0.22995482,1571.2,1570.8,0.02552535]
[1673929918713,6.59472482,1571.2,1570.8,0.02552535]
[1673929919466,1.01754823,1571.3,1570.9,3.11662407]
[1673929919675,6.4302,1571.3,1571.2,1.68461446]
[1673929920217,15.91102407,1571.3,1571.2,1.68461446]
[1673929920372,16.8625723,1571.3,1571.2,1.68461446]
[1673929920744,23.1013436,1571.3,1571.2,1.68461446]
[1673929920911,29.00888571,1571.3,1570.9,1.57932605]
[1673929921107,1.287,1571.0,1570.9,1.57932605]
[1673929921320,23.72973407,1571.0,1570.9,1.57932605]
[1673929922683,28.54982862,1571.0,1570.9,1.57932605]
[1673929922894,28.28502431,1571.0,1570.9,1.57932605]
[1673929923166,27.33362659,1571.0,1570.9,1.57932605]
[1673929923682,27.39962659,1571.0,1570.9,1.57932605]
[1673929924599,26.92202659,1571.0,1570.9,1.57932605]
[1673929931581,6.66137,1571.0,1570.9,1.57932605]
[1673929931734,6.43137,1571.0,1570.9,1.57932605]
[1673929937366,12.79674,1571.0,1570.9,1.57932605]
[1673929938261,13.79674,1571.0,1570.9,1.57932605]
[1673929939326,14.02674,1571.0,1570.9,1.57932605]
[1673929939536,15.30675577,1571.0,1570.9,1.57932605]
[1673929940721,6.43137,1571.0,1570.9,1.57932605]
[1673929940891,0.066,1571.0,1570.9,1.58945804]
[1673929941888,0.066,1571.0,1570.9,1.62693804]
[1673929942769,6.36504,1571.1,1570.9,1.62693804]
[1673929942980,6.36504,1571.1,1570.9,1.75470438]
[1673929943448,6.36489,1571.2,1570.9,3.21170438]
[1673929943639,6.36426,1571.3,1570.9,3.21170438]
[1673929943853,6.36426,1571.3,1571.0,0.32117044]
[1673929944242,6.36426,1571.3,1571.0,0.38393044]
[1673929946189,7.31521772,1571.4,1571.0,0.32117044]
[1673929946374,0.95139772,1571.5,1571.2,1.457]
[1673929946703,15.1050643,1571.6,1571.3,0.1457]
[1673929947243,0.95139772,1571.5,1571.3,0.1457]
[1673929947465,6.36375,1571.4,1571.1,1.55653]
[1673929947928,7.31514772,1571.4,1571.1,1.55653]
[1673929948139,13.67889772,1571.4,1571.1,1.55653]
[1673929948778,8.7420243,1571.5,1571.1,1.55653]
[1673929949125,7.31492772,1571.5,1571.2,0.155653]
[1673929949821,6.36353,1571.5,1571.2,1.601653]
[1673929950052,0.95139772,1571.6,1571.4,1.444]
[1673929950451,2.3784943,1571.7,1571.4,1.444]
[1673929951197,0.95139772,1571.7,1571.4,1.444]
[1673929951411,0.95139772,1571.7,1571.5,0.1444]
[1673929952240,8.14145768,1571.7,1571.5,0.1444]
[1673929952500,7.14145768,1571.7,1571.4,1.444]
[1673929954339,8.56855426,1571.7,1571.4,1.444]
[1673929954986,8.56855426,1571.7,1571.3,0.18121056]
[1673929955202,17.26882065,1571.7,1571.3,0.01011056]
[1673929955435,1.72688206,1571.6,1571.3,0.01011056]
[1673929955766,12.72636,1571.6,1571.3,0.01011056]
[1673929957454,7.78964658,1571.7,1571.3,0.01011056]
[1673929958554,7.85564658,1571.7,1571.3,0.01011056]
[1673929958768,0.066,1571.7,1571.3,0.01011056]
[1673929960172,0.066,1571.7,1571.3,6.37420056]
[1673929960395,0.066,1571.7,1571.4,0.87862006]
[1673929960547,0.066,1571.7,1571.4,0.63742006]
[1673929961861,6.42854,1571.7,1571.3,0.26111056]
[1673929963534,12.79108,1571.7,1571.3,0.26111056]
[1673929963739,12.79108,1571.7,1571.3,0.01011056]
[1673929963740,13.74094887,1571.7,1571.3,0.01011056]
[1673929964064,14.74094887,1571.7,1571.3,0.01011056]
[1673929964279,18.46470924,1571.7,1571.3,0.01011056]
[1673929964447,17.46470924,1571.7,1571.3,0.01011056]
[1673929965623,6.36334,1571.5,1571.3,0.01011056]
[1673929966693,6.42934,1571.5,1571.3,0.01011056]
[1673929967269,0.066,1571.5,1571.3,0.01011056]
[1673929967943,0.066,1571.5,1571.3,0.15682162]
[1673929969998,0.066,1571.5,1571.0,20.9568233]
[1673929969999,16.85924294,1571.5,1571.0,20.9568233]
[1673929970249,17.33674294,1571.5,1571.0,20.9568233]
[1673929970468,14.22011887,1571.5,1571.0,20.9568233]
[1673929971526,0.94986887,1571.4,1571.0,20.9568233]
[1673929971841,12.72846,1571.3,1571.0,20.9568233]
[1673929972155,14.73269589,1571.3,1571.0,20.9568233]
[1673929972531,14.73269589,1571.3,1571.0,0.0384233]
[1673929973417,12.72992,1571.1,1571.0,0.0384233]
[1673929973779,12.83906086,1571.5,1571.0,0.0384233]
[1673929973780,0.22927787,1571.8,1571.2,4.21103828]
[1673929974032,0.22927787,1571.8,1571.7,3.11662407]
[1673929974222,0.22927787,1571.8,1571.7,22.20421407]
[1673929974407,0.26933831,1572.0,1571.7,31.44886139]
[1673929974615,0.26933831,1572.0,1571.8,6.59402407]
[1673929974887,0.26933831,1572.0,1571.9,24.31818648]
[1673929975051,0.20933831,1572.0,1571.9,26.42052566]
[1673929975408,0.20933831,1572.0,1571.9,27.68523528]
[1673929975564,0.20933831,1572.0,1571.9,26.92634896]
[1673929975985,0.20933831,1572.0,1571.9,29.92634896]
[1673929976238,0.20933831,1572.2,1572.0,1.0]
[1673929976456,0.20933831,1572.2,1572.1,25.20535407]
[1673929976772,3.831e-05,1572.2,1572.1,29.32899325]
[1673929977352,3.831e-05,1572.2,1572.1,27.87199325]
[1673929977561,0.24618527,1572.3,1572.1,27.87199325]
[1673929977814,0.24618527,1572.3,1572.2,10.80751]
[1673929978151,5.55227452,1572.7,1572.4,19.07886]
[1673929978152,0.29679603,1572.7,1572.4,19.07886]
[1673929978453,0.29679603,1572.7,1572.5,6.35907]
[1673929978673,0.29679603,1572.7,1572.4,6.35962]
[1673929980517,0.29679603,1572.7,1572.4,6.37746655]
[1673929980839,0.29679603,1572.7,1572.4,12.73716655]
[1673929981049,0.29679603,1572.7,1572.4,13.5583439]
[1673929982206,0.29679603,1572.7,1572.4,15.0153439]
[1673929982439,0.27753749,1572.8,1572.6,3.11662407]
[1673929982624,0.0054062,1573.2,1572.7,38.48258407]
[1673929982822,0.0054062,1573.2,1572.8,3.11662407]
[1673929983030,0.0054062,1573.2,1572.9,31.85868648]
[1673929983282,0.0054062,1573.2,1573.1,1.457]
[1673929983492,1.33200462,1573.5,1573.2,1.01040619]
[1673929983771,1.33200462,1573.5,1573.4,2.912]
[1673929984117,0.03,1573.9,1573.4,21.11275905]
[1673929984307,0.03,1573.9,1573.5,27.97266681]
[1673929984499,0.03,1573.9,1573.6,3.11662407]
[1673929984705,0.03,1573.9,1573.7,3.0]
[1673929984919,0.03,1573.9,1573.7,1.445]
[1673929985609,0.03,1573.9,1573.7,10.91597407]
[1673929985927,1.0767362,1575.1,1574.3,6.35194]
[1673929986093,1.0767362,1575.1,1574.5,12.70212]
[1673929986094,2.10099982,1575.1,1574.5,12.70212]
[1673929986448,1.0767362,1575.1,1574.6,3.89652026]
[1673929986598,1.0767362,1575.1,1574.8,19.04979]
[1673929986809,1.0767362,1575.1,1575.0,7.8062]
[1673929987077,1.0767362,1575.1,1575.0,9.2542]
[1673929987230,1.18440982,1575.1,1574.9,1.0]
[1673929987445,1.18440982,1575.1,1574.7,9.35036]
[1673929987651,1.0767362,1575.1,1574.7,9.35036]
[1673929987862,1.0767362,1575.1,1574.8,1.457]
[1673929988143,1.457,1576.2,1575.1,12.69728]
[1673929988285,0.03832533,1576.3,1575.6,14.0]
[1673929988494,0.02,1577.0,1575.9,14.0]
[1673929988702,54.71473308,1577.5,1576.0,19.86974696]
[1673929988703,7.96705538,1577.5,1576.0,19.86974696]
[1673929988914,7.96705538,1577.5,1577.1,1.457]
[1673929989189,7.86705538,1577.5,1577.0,6.34111]
[1673929989487,10.86705538,1577.5,1576.6,6.34275]
[1673929989651,10.86705538,1577.5,1576.9,1.0]
[1673929989652,0.4757,1577.4,1576.9,1.0]
[1673929990025,3.0,1577.1,1575.6,7.80569]
[1673929990190,2.654,1576.7,1575.5,1.444]
[1673929990429,2.654,1576.8,1575.6,1.457]
[1673929990761,0.4759,1576.7,1575.6,10.80356]
[1673929990913,0.4759,1576.7,1575.3,7.80475]
[1673929990914,3.0,1576.4,1575.3,1.457]
[1673929991123,1.76642968,1575.9,1574.9,0.1457]
[1673929991334,1.448,1575.5,1574.7,2.46041106]
[1673929991627,7.791,1575.6,1574.7,1.06283436]
[1673929991770,0.4763,1575.4,1574.7,1.06283436]
[1673929991965,1.457,1575.2,1574.7,1.06283436]
[1673929992340,1.444,1575.0,1574.7,1.06283436]
[1673929992572,1.445,1575.0,1574.7,0.0674233]
[1673929992753,0.4765,1574.9,1574.7,0.0674233]
[1673929993084,0.4765,1574.9,1574.2,4.55339822]
[1673929993085,7.0563,1574.9,1573.9,0.08408695]
[1673929993288,4.35196918,1574.8,1573.9,0.08408695]
[1673929993597,1.457,1574.2,1573.4,1.457]
[1673929993785,11.70996566,1574.3,1573.3,1.9339]
[1673929993973,9.5058,1574.1,1573.3,0.4769]
[1673929994191,9.5058,1574.1,1573.2,6.36168619]
[1673929994192,1.23,1574.1,1573.2,6.36168619]
[1673929994435,1.23,1574.1,1573.6,1.457]
[1673929994436,0.4767,1574.0,1573.6,1.457]
[1673929994608,2.77568566,1574.3,1574.0,0.59451477]
[1673929994803,1.456,1574.4,1574.0,0.59451477]
[1673929994804,0.23,1574.2,1574.0,0.59451477]
[1673929995010,1.687,1574.3,1574.0,0.59451477]
[1673929995382,1.457,1574.2,1574.0,0.59451477]
[1673929995603,1.0557,1574.1,1574.0,0.59451477]
[1673929996429,0.91,1574.1,1574.0,0.59451477]
[1673929996641,0.23,1574.1,1574.0,0.59451477]
[1673929997008,0.91,1574.1,1574.0,0.59451477]
[1673929997220,0.91,1574.1,1573.3,0.92966862]
[1673929997221,1.0,1574.0,1573.3,0.92966862]
[1673929997460,1.448,1573.8,1573.2,0.00540619]
[1673929998032,1.4768,1573.8,1573.2,0.00540619]
[1673929998168,0.23,1573.7,1573.2,0.00540619]
[1673929998384,0.4768,1573.8,1573.7,0.46]
[1673929998606,0.4768,1573.8,1573.2,0.02252233]
[1673929999058,0.4768,1573.8,1573.2,0.14611456]
[1673929999435,0.4768,1573.9,1573.2,0.14611456]
[1673929999680,0.4768,1573.9,1573.2,0.79245374]
[1673929999896,0.4767,1574.0,1573.2,0.79245374]
[1673930000099,4.68,1574.1,1573.2,0.79245374]
[1673930000100,0.4768,1573.8,1573.2,0.79245374]
[1673930000456,0.23,1573.7,1573.2,0.79245374]
[1673930000624,0.23,1573.8,1573.2,0.79245374]
[1673930000797,0.7068,1573.8,1573.2,0.79245374]
[1673930001010,0.4768,1573.8,1573.2,0.79245374]
[1673930001225,0.4807,1574.0,1573.3,0.55614537]
[1673930001467,0.004,1574.0,1573.3,4.57148123]
[1673930001638,0.004,1574.0,1573.4,0.64633918]
[1673930001851,0.4768,1573.9,1573.2,0.00540619]
[1673930002633,0.4768,1573.9,1573.2,6.36174619]
[1673930002973,0.4807,1574.0,1573.3,1.7594138]
[1673930003134,0.4807,1574.0,1573.3,4.7594138]
[1673930003342,0.004,1574.0,1573.4,0.64633918]
[1673930003847,0.004,1574.0,1573.3,4.11307462]
[1673930004052,0.004,1574.0,1573.4,0.64633918]
[1673930004312,0.004,1574.0,1573.4,1.12228056]
[1673930004705,0.004,1574.0,1573.4,1.13862426]
[1673930004915,0.004,1574.0,1573.5,4.01533586]
[1673930005185,0.004,1574.0,1573.6,9.35465]
[1673930005551,0.004,1574.0,1573.7,0.01634058]
[1673930005725,0.004,1574.0,1573.7,1.49487356]
[1673930006107,0.004,1574.0,1573.7,2.14121274]
[1673930007351,0.004,1574.0,1573.5,6.35511]
[1673930007352,0.004,1574.0,1573.5,0.4769]
[1673930007804,0.004,1574.0,1573.4,0.4769]
[1673930008244,3.11662407,1573.9,1573.4,0.4769]
[1673930008558,4.11662407,1573.9,1573.3,0.4769]
[1673930008775,0.23,1573.8,1573.3,0.4769]
[1673930010136,0.71894241,1573.8,1573.3,0.4769]
[1673930010659,0.71894241,1573.8,1573.2,0.48240619]
[1673930011913,0.71894241,1573.8,1573.2,0.48484739]
[1673930012283,3.11662407,1573.7,1573.2,0.48484739]
[1673930012492,3.11662407,1573.7,1573.2,0.00540619]
[1673930012493,1.926,1573.6,1573.2,0.00540619]
[1673930012754,0.1926,1573.5,1573.2,0.00540619]
[1673930012911,8.28104,1573.6,1573.5,0.57779999]
[1673930013127,8.51104,1573.6,1573.5,0.57779999]
[1673930013761,6.82887806,1573.6,1573.5,0.57779999]
[1673930013985,9.94550213,1573.6,1573.5,0.57779999]
[1673930014201,9.94550213,1573.6,1573.2,0.00540619]
[1673930014202,1.0,1573.5,1573.2,0.00540619]
[1673930014543,13.04132,1573.4,1573.2,0.00540619]
[1673930014759,16.15794407,1573.4,1573.2,0.00540619]
[1673930014906,3.11662407,1573.3,1573.1,0.012]
[1673930015286,1.0,1573.1,1572.9,0.09]
[1673930015456,11.29647,1573.2,1572.9,0.09]
[1673930015672,0.477,1573.0,1572.9,0.09]
[1673930016022,12.47309407,1573.2,1573.1,1.8799539]
[1673930016183,20.71248948,1573.2,1573.1,1.8799539]
[1673930017486,20.77848948,1573.2,1573.1,0.002]
[1673930017961,21.00848948,1573.2,1573.1,0.002]
[1673930018589,6.3576,1573.0,1572.5,0.10719828]
[1673930018848,12.71624,1572.8,1572.5,0.10719828]
[1673930019274,6.83414,1573.1,1572.5,0.71987681]
[1673930019595,6.83414,1573.1,1572.6,0.07198768]
[1673930019596,13.19128,1573.1,1572.6,0.07198768]
[1673930019780,12.71428,1573.1,1572.6,0.07198768]
[1673930019990,15.83090407,1573.1,1572.6,0.07198768]
[1673930020331,3.11662407,1573.0,1572.5,0.58439828]
[1673930020479,6.35788,1572.9,1572.5,0.10964056]
[1673930021127,6.35766,1573.0,1572.5,0.10964056]
[1673930021343,6.83414,1573.1,1572.5,1.3540014]
[1673930021602,6.35714,1573.1,1572.5,1.3540014]
[1673930021806,6.35714,1573.1,1572.6,0.13540014]
[1673930022023,12.71428,1573.1,1572.6,0.13540014]